fUSD/lending_fUSD_20240530
["ID","MTS","AMOUNT","RATE_DAILY","PERIOD"]
[328211942,1717061446267,-676.64,0.00029239,7]
[328211943,1717061446276,-620.3,0.00029239,7]
[328211944,1717061446285,-500.0,0.00029239,7]
[328211945,1717061446294,-500.0,0.00029239,7]
[328211946,1717061446303,-500.0,0.00029239,7]
[328211947,1717061446312,-737.64,0.00029239,7]
[328211948,1717061446321,-500.0,0.00029239,7]
[328211949,1717061446331,-500.0,0.00029239,7]
[328211950,1717061446340,-230.99944915,0.00029239,7]
[328211951,1717061446351,-356.12055085,0.00029239,7]
[328211952,1717061446360,-536.34,0.00029239,7]
[328211953,1717061446370,-670.35,0.00029239,7]
[328211954,1717061446379,-500.0,0.00029239,7]
[328211955,1717061446389,-500.0,0.00029239,7]
[328211956,1717061446399,-500.0,0.00029239,2]
[328211957,1717061446408,-500.0,0.00029239,7]
[328211958,1717061446417,-500.0,0.00029239,7]
[328211959,1717061446426,-500.0,0.00029239,7]
[328211960,1717061446435,-500.0,0.00029239,7]
[328211961,1717061446444,-500.0,0.00029239,7]
[328211962,1717061446453,-180.81018558,0.00029239,7]
[328211963,1717061446462,-500.0,0.00029239,7]
[328211964,1717061446471,-500.0,0.00029239,7]
[328211965,1717061446482,-796.67,0.00029239,7]
[328211966,1717061446490,-500.0,0.00029239,7]
[328211967,1717061446499,-500.0,0.00029239,7]
[328211968,1717061446509,-500.0,0.00029239,7]
[328211969,1717061446517,-500.0,0.00029239,7]
[328211970,1717061446526,-500.0,0.00029239,7]
[328211971,1717061446535,-500.0,0.00029239,7]
[328211972,1717061446544,-500.0,0.00029239,7]
[328211973,1717061446554,-500.0,0.00029239,7]
[328211974,1717061446563,-500.0,0.00029239,7]
[328211975,1717061446571,-500.0,0.00029239,7]
[328211976,1717061446580,-500.0,0.00029239,7]
[328211977,1717061446589,-500.0,0.00029239,7]
[328211978,1717061446601,-500.0,0.00029239,7]
[328211979,1717061446610,-500.0,0.00029239,7]
[328211980,1717061446618,-500.0,0.00029239,7]
[328211981,1717061446627,-150.0,0.00029239,7]
[328211982,1717061446636,-520.27,0.00029239,7]
[328211983,1717061446645,-500.0,0.00029239,7]
[328211984,1717061446654,-500.0,0.00029239,7]
[328211985,1717061446664,-500.0,0.00029239,7]
[328211986,1717061446673,-587.46,0.00029239,7]
[328211987,1717061446681,-500.0,0.00029239,7]
[328211988,1717061446690,-500.0,0.00029239,7]
[328211989,1717061446699,-500.0,0.00029239,7]
[328211990,1717061446709,-781.8,0.00029239,7]
[328211991,1717061446718,-2751.95,0.00029239,7]
[328211992,1717061446727,-500.0,0.00029239,7]
[328211993,1717061446736,-626.75,0.00029239,7]
[328211994,1717061446745,-840.93,0.00029239,7]
[328211995,1717061446754,-500.0,0.00029239,7]
[328211996,1717061446763,-531.20142427,0.00029239,7]
[328211997,1717061446773,-824.36,0.00029239,7]
[328211998,1717061446784,-500.0,0.00029239,7]
[328211999,1717061446796,-500.0,0.00029239,7]
[328212000,1717061446805,-500.0,0.00029239,7]
[328212001,1717061446815,-500.0,0.00029239,7]
[328212002,1717061446825,-500.0,0.00029239,7]
[328212003,1717061446838,-500.0,0.00029239,7]
[328212004,1717061446848,-500.0,0.00029239,7]
[328212005,1717061446858,-500.0,0.00029239,7]
[328212006,1717061446868,-500.0,0.00029239,7]
[328212007,1717061446878,-332.0520376,0.00029239,7]
[328212008,1717061446888,-500.0,0.00029239,7]
[328212009,1717061446898,-563.45,0.00029239,7]
[328212010,1717061446908,-500.0,0.00029239,7]
[328212011,1717061446917,-500.0,0.00029239,7]
[328212012,1717061446927,-637.09,0.00029239,7]
[328212013,1717061446936,-500.0,0.00029239,7]
[328212014,1717061446946,-301.38260896,0.00029239,7]
[328212015,1717061446956,-721.02,0.00029239,7]
[328212016,1717061446967,-500.0,0.00029239,7]
[328212017,1717061446978,-500.0,0.00029239,7]
[328212018,1717061446987,-583.24082794,0.00029239,7]
[328212019,1717061446997,-500.0,0.00029239,7]
[328212020,1717061447006,-500.0,0.00029239,7]
[328212021,1717061447017,-500.0,0.00029239,7]
[328212022,1717061447026,-1100.81,0.00029239,7]
[328212023,1717061447035,-500.0,0.00029239,7]
[328212024,1717061447045,-500.0,0.00029239,7]
[328212025,1717061447055,-500.0,0.00029239,7]
[328212026,1717061447065,-1351.03,0.00029239,7]
[328212027,1717061447074,-500.0,0.00029239,7]
[328212028,1717061447083,-500.0,0.00029239,7]
[328212029,1717061447092,-784.94,0.00029239,7]
[328212030,1717061447101,-500.0,0.00029239,7]
[328212031,1717061447111,-500.0,0.00029239,7]
[328212032,1717061447120,-308.61016898,0.00029239,7]
[328212033,1717061447129,-807.15,0.00029239,7]
[328212034,1717061447138,-500.0,0.00029239,7]
[328212035,1717061447147,-500.0,0.00029239,7]
[328212036,1717061447156,-500.0,0.00029239,7]
[328212037,1717061447166,-500.0,0.00029239,7]
[328212038,1717061447175,-1222.85,0.00029239,7]
[328212039,1717061447184,-500.0,0.00029239,7]
[328212040,1717061447193,-500.0,0.00029239,7]
[328212041,1717061447204,-500.0,0.00029239,7]
[328212042,1717061447214,-500.0,0.00029239,7]
[328212043,1717061447223,-500.0,0.00029239,7]
[328212044,1717061447232,-805.99,0.00029239,7]
[328212045,1717061447242,-500.0,0.00029239,7]
[328212046,1717061447250,-500.0,0.00029239,2]
[328212047,1717061447260,-500.0,0.00029239,7]
[328212048,1717061447269,-500.0,0.00029239,7]
[328212049,1717061447278,-500.0,0.00029239,7]
[328212050,1717061447288,-500.0,0.00029239,7]
[328212051,1717061447297,-1048.87,0.00029239,7]
[328212052,1717061447306,-1649.57,0.00029239,5]
[328212053,1717061447315,-500.0,0.00029239,7]
[328212054,1717061447324,-1183.34,0.00029239,7]
[328212055,1717061447334,-500.0,0.00029239,7]
[328212056,1717061447343,-500.0,0.00029239,7]
[328212057,1717061447352,-500.0,0.00029239,7]
[328212058,1717061447361,-222.1203461,0.00029239,7]
[328212059,1717061447371,-688.12,0.00029239,7]
[328212060,1717061447380,-500.0,0.00029239,7]
[328212061,1717061447389,-544.44,0.00029239,7]
[328212062,1717061447398,-1739.92,0.00029239,7]
[328212063,1717061447407,-718.52,0.00029239,7]
[328212064,1717061447417,-500.0,0.00029239,7]
[328212065,1717061447426,-500.0,0.00029239,7]
[328212066,1717061447435,-500.0,0.00029239,7]
[328212067,1717061447443,-267.64611927,0.00029239,7]
[328212068,1717061447452,-500.0,0.00029239,7]
[328212069,1717061447462,-500.0,0.00029239,7]
[328212070,1717061447471,-500.0,0.00029239,7]
[328212071,1717061447480,-500.0,0.00029239,7]
[328212072,1717061447489,-500.0,0.00029239,7]
[328212073,1717061447498,-500.0,0.00029239,7]
[328212074,1717061447507,-405.39031173,0.00029239,7]
[328212075,1717061447517,-500.0,0.00029239,7]
[328212076,1717061447526,-185.92233706,0.00029239,7]
[328212077,1717061447535,-500.0,0.00029239,7]
[328212078,1717061447544,-500.0,0.00029239,7]
[328212079,1717061447554,-500.0,0.00029239,7]
[328212080,1717061447562,-500.0,0.00029239,7]
[328212081,1717061447571,-500.0,0.00029239,7]
[328212082,1717061447580,-500.0,0.00029239,2]
[328212083,1717061447590,-500.0,0.00029239,7]
[328212084,1717061447599,-500.0,0.00029239,7]
[328212085,1717061447608,-500.0,0.00029239,7]
[328212086,1717061447617,-500.0,0.00029239,7]
[328212087,1717061447626,-500.0,0.00029239,7]
[328212088,1717061447635,-500.0,0.00029239,7]
[328212089,1717061447644,-500.0,0.00029239,7]
[328212090,1717061447653,-500.0,0.00029239,7]
[328212091,1717061447663,-500.0,0.00029239,7]
[328212092,1717061447672,-401.67093667,0.00029239,7]
[328212093,1717061447681,-500.0,0.00029239,7]
[328212094,1717061447690,-500.0,0.00029239,7]
[328212095,1717061447699,-500.0,0.00029239,7]
[328212096,1717061447710,-1000.0,0.0002924,2]
[328212097,1717061447718,-1245.28614517,0.00029251,2]
[328212098,1717061447727,-150.0,0.00029292,2]
[328212099,1717061447736,-507.44,0.00029334,2]
[328212100,1717061447746,-4282.56969523,0.0002934,2]
[328212101,1717061447757,-500.0,0.0002934,7]
[328212102,1717061447767,-500.0,0.0002934,7]
[328212103,1717061447777,-500.0,0.0002934,7]
[328212104,1717061447786,-500.0,0.0002934,7]
[328212105,1717061447795,-500.0,0.0002934,7]
[328212106,1717061447805,-500.0,0.0002934,7]
[328212107,1717061447814,-604.15160289,0.0002934,7]
[328212108,1717061447823,-500.0,0.0002934,7]
[328212109,1717061447832,-534.33,0.0002934,7]
[328212110,1717061447841,-500.0,0.0002934,7]
[328212111,1717061447852,-500.0,0.0002934,7]
[328212112,1717061447863,-500.0,0.0002934,7]
[328212113,1717061447872,-500.0,0.0002934,7]
[328212114,1717061447883,-500.0,0.0002934,7]
[328212115,1717061447893,-500.0,0.0002934,7]
[328212116,1717061447903,-500.0,0.0002934,7]
[328212117,1717061447912,-500.0,0.00029341,2]
[328212118,1717061448066,-539.0,0.000294,4]
[328212119,1717061448075,-159.8102037,0.00029413,2]
[328212120,1717061448084,-150.0,0.00029475,2]
[328212121,1717061448094,-500.0,0.00029513,7]
[328212122,1717061448103,-653.27,0.00029513,7]
[328212123,1717061448112,-500.0,0.00029513,7]
[328212124,1717061448121,-500.0,0.00029513,7]
[328212125,1717061448131,-500.0,0.00029513,7]
[328212126,1717061448141,-676.64,0.00029513,7]
[328212127,1717061448150,-620.3,0.00029513,7]
[328212128,1717061448160,-500.0,0.00029513,7]
[328212129,1717061448169,-500.0,0.00029513,7]
[328212130,1717061448178,-500.0,0.00029513,7]
[328212131,1717061448188,-737.64,0.00029513,7]
[328212132,1717061448197,-500.0,0.00029513,7]
[328212133,1717061448207,-500.0,0.00029513,7]
[328212134,1717061448216,-587.12,0.00029513,7]
[328212135,1717061448225,-536.34,0.00029513,7]
[328212136,1717061448235,-670.35,0.00029513,7]
[328212137,1717061448244,-500.0,0.00029513,7]
[328212138,1717061448254,-500.0,0.00029513,7]
[328212139,1717061448264,-500.0,0.00029513,7]
[328212140,1717061448274,-500.0,0.00029513,2]
[328212141,1717061448283,-500.0,0.00029513,7]
[328212142,1717061448292,-500.0,0.00029513,7]
[328212143,1717061448302,-500.0,0.00029513,7]
[328212144,1717061448312,-500.0,0.00029513,7]
[328212145,1717061448321,-500.0,0.00029513,7]
[328212146,1717061448331,-500.0,0.00029513,7]
[328212147,1717061448340,-796.67,0.00029513,7]
[328212148,1717061448349,-500.0,0.00029513,7]
[328212149,1717061448359,-500.0,0.00029513,7]
[328212150,1717061448368,-500.0,0.00029513,7]
[328212151,1717061448378,-500.0,0.00029513,7]
[328212152,1717061448389,-500.0,0.00029513,7]
[328212153,1717061448400,-444.35661447,0.00029513,7]
[328212154,1717061448410,-326.24878206,0.00029513,7]
[328212155,1717061448419,-500.0,0.00029513,7]
[328212156,1717061448429,-500.0,0.00029513,7]
[328212157,1717061448438,-500.0,0.00029513,7]
[328212158,1717061448447,-500.0,0.00029513,7]
[328212159,1717061448457,-500.0,0.00029513,7]
[328212160,1717061448466,-500.0,0.00029513,7]
[328212161,1717061448475,-628.0796108,0.00029513,7]
[328212162,1717061448485,-500.0,0.00029513,7]
[328212163,1717061448494,-150.0,0.00029513,7]
[328212164,1717061448502,-520.27,0.00029513,7]
[328212165,1717061448511,-500.0,0.00029513,7]
[328212166,1717061448521,-500.0,0.00029513,7]
[328212167,1717061448531,-500.0,0.00029513,7]
[328212168,1717061448541,-587.46,0.00029513,7]
[328212169,1717061448551,-500.0,0.00029513,7]
[328212170,1717061448561,-500.0,0.00029513,7]
[328212171,1717061448571,-500.0,0.00029513,7]
[328212172,1717061448581,-781.8,0.00029513,7]
[328212173,1717061448591,-2751.95,0.00029513,7]
[328212174,1717061448602,-500.0,0.00029513,7]
[328212175,1717061448612,-626.75,0.00029513,7]
[328212176,1717061448621,-840.93,0.00029513,7]
[328212177,1717061448630,-500.0,0.00029513,7]
[328212178,1717061448639,-824.36,0.00029513,7]
[328212179,1717061448649,-500.0,0.00029513,7]
[328212180,1717061448658,-500.0,0.00029513,7]
[328212181,1717061448669,-500.0,0.00029513,7]
[328212182,1717061448679,-500.0,0.00029513,7]
[328212183,1717061448691,-226.86097971,0.00029513,7]
[328212184,1717061448700,-500.0,0.00029513,7]
[328212185,1717061448711,-500.0,0.00029513,7]
[328212186,1717061448720,-500.0,0.00029513,7]
[328212187,1717061448729,-500.0,0.00029513,7]
[328212188,1717061448740,-500.0,0.00029513,7]
[328212189,1717061448751,-563.45,0.00029513,7]
[328212190,1717061448759,-480.42,0.00029513,7]
[328212191,1717061448768,-500.0,0.00029513,7]
[328212192,1717061448778,-637.09,0.00029513,7]
[328212193,1717061448788,-500.0,0.00029513,7]
[328212194,1717061448798,-721.02,0.00029513,7]
[328212195,1717061448808,-500.0,0.00029513,7]
[328212196,1717061448817,-500.0,0.00029513,7]
[328212197,1717061448826,-500.0,0.00029513,7]
[328212198,1717061448835,-500.0,0.00029513,7]
[328212199,1717061448844,-500.0,0.00029513,7]
[328212200,1717061448853,-1100.81,0.00029513,7]
[328212201,1717061448863,-500.0,0.00029513,7]
[328212202,1717061448872,-500.0,0.00029513,7]
[328212203,1717061448881,-500.0,0.00029513,7]
[328212204,1717061448890,-1351.03,0.00029513,7]
[328212205,1717061448899,-500.0,0.00029513,7]
[328212206,1717061448908,-500.0,0.00029513,7]
[328212207,1717061448917,-784.94,0.00029513,7]
[328212208,1717061448926,-500.0,0.00029513,7]
[328212209,1717061448936,-500.0,0.00029513,7]
[328212210,1717061448945,-807.15,0.00029513,7]
[328212211,1717061448956,-500.0,0.00029513,7]
[328212212,1717061448968,-500.0,0.00029513,7]
[328212213,1717061448977,-500.0,0.00029513,7]
[328212214,1717061448987,-461.18766931,0.00029513,7]
[328212215,1717061448996,-1222.85,0.00029513,7]
[328212216,1717061449006,-500.0,0.00029513,7]
[328212217,1717061449015,-500.0,0.00029513,7]
[328212218,1717061449024,-500.0,0.00029513,7]
[328212219,1717061449033,-500.0,0.00029513,7]
[328212220,1717061449043,-500.0,0.00029513,7]
[328212221,1717061449053,-805.99,0.00029513,7]
[328212222,1717061449062,-500.0,0.00029513,7]
[328212223,1717061449071,-500.0,0.00029513,2]
[328212224,1717061449080,-500.0,0.00029513,7]
[328212225,1717061449089,-500.0,0.00029513,7]
[328212226,1717061449097,-500.0,0.00029513,7]
[328212227,1717061449107,-500.0,0.00029513,7]
[328212228,1717061449116,-784.59827586,0.00029513,7]
[328212229,1717061449132,-264.27172414,0.00029513,7]
[328212230,1717061449141,-1649.57,0.00029513,5]
[328212231,1717061449150,-500.0,0.00029513,7]
[328212232,1717061449159,-1183.34,0.00029513,7]
[328212233,1717061449168,-500.0,0.00029513,7]
[328212234,1717061449178,-363.27159824,0.00029513,7]
[328212235,1717061449194,-136.72840176,0.00029513,7]
[328212236,1717061449203,-500.0,0.00029513,7]
[328212237,1717061449213,-688.12,0.00029513,7]
[328212238,1717061449222,-175.90199415,0.00029513,7]
[328212239,1717061449233,-324.09800585,0.00029513,7]
[328212240,1717061449242,-172.26893825,0.00029513,7]
[328212243,1717061561498,4241.64,0.00028064,60]
[328212244,1717061584645,178.47,0.00028021,120]
[328212265,1717062632171,-155.0,0.00017134,2]
[328212266,1717062632181,-155.0,0.00017134,2]
[328212267,1717062632191,-156.38404616,0.00017134,2]
[328212268,1717062632201,-155.0,0.00017135,2]
[328212269,1717062632210,-55.57223383,0.00017135,2]
[328212270,1717062632346,-10486.21042871,0.00017135,2]
[328212271,1717062632364,-2366.22973263,0.00017136,2]
[328212272,1717062632375,-536.70106467,0.00017137,2]
[328212273,1717062632385,-5283.63303706,0.00017156,2]
[328212274,1717062632395,-10956.07722211,0.00017157,2]
[328212275,1717062632405,-3259.04,0.00017808,2]
[328212276,1717062632414,-150.0,0.00019725,2]
[328212277,1717062632424,-150.0,0.00023973,2]
[328212278,1717062632433,-299.99,0.00023973,7]
[328212279,1717062632442,-183.77,0.00023973,2]
[328212280,1717062632452,-2652.69934693,0.00024,3]
[328212281,1717062632461,-751.0,0.00024,2]
[328212282,1717062632470,-499.99,0.00024,2]
[328212283,1717062632480,-778.49,0.00024,2]
[328212284,1717062632490,-248.37,0.00025184,2]
[328212285,1717062632499,-425.72561742,0.0002582,2]
[328212286,1717062632508,-250.0,0.00026777,2]
[328212290,1717062632518,-150.0,0.00027065,2]
[328212294,1717062632527,-1000.0,0.00027113,2]
[328212298,1717062632537,-10503.18,0.00027114,2]
[328212302,1717062632546,-410.66,0.0002712,2]
[328212306,1717062632555,-168.22,0.00027137,2]
[328212309,1717062632565,-250.0,0.00027314,2]
[328212311,1717062632574,-248.37,0.00027448,2]
[328212313,1717062632584,-2606.040207,0.00027461,2]
[328212316,1717062632594,-150.0,0.00027897,2]
[328212318,1717062632603,-180.31160513,0.00028021,2]
[328212320,1717062632612,-290.00295327,0.00028021,2]
[328212324,1717062632622,-13213.55093454,0.00028021,2]
[328212326,1717062632632,-150.0,0.0002867,2]
[328212328,1717062632641,-2780.89694079,0.00028688,2]
[328212330,1717062632650,-492.92362223,0.00028689,2]
[328212331,1717062632660,-1244.99730591,0.00028689,2]
[328212332,1717062632669,-19512.71640385,0.00028689,2]
[328212333,1717062632678,-192.53745669,0.0002869,2]
[328212334,1717062632687,-500.0,0.00028691,7]
[328212335,1717062632696,-500.0,0.00028691,7]
[328212336,1717062632705,-500.0,0.00028691,7]
[328212337,1717062632715,-558.62,0.00028691,7]
[328212338,1717062632724,-529.92929979,0.00028691,7]
[328212339,1717062632733,-500.0,0.00028691,7]
[328212340,1717062632743,-500.0,0.00028691,7]
[328212341,1717062632752,-500.0,0.00028691,7]
[328212342,1717062632761,-500.0,0.00028691,7]
[328212343,1717062632770,-500.0,0.00028691,7]
[328212344,1717062632780,-500.0,0.00028691,7]
[328212345,1717062632789,-500.0,0.00028691,2]
[328212346,1717062632798,-500.0,0.00028691,7]
[328212347,1717062632808,-500.0,0.00028691,7]
[328212348,1717062632817,-500.0,0.00028691,7]
[328212349,1717062632826,-500.0,0.00028691,7]
[328212350,1717062632836,-500.0,0.00028691,7]
[328212351,1717062632845,-500.0,0.00028691,7]
[328212352,1717062632854,-700.78,0.00028691,7]
[328212353,1717062632863,-500.0,0.00028691,7]
[328212354,1717062632873,-500.0,0.00028691,7]
[328212355,1717062632881,-500.0,0.00028691,7]
[328212356,1717062632890,-500.0,0.00028691,7]
[328212357,1717062632899,-500.0,0.00028691,7]
[328212358,1717062632908,-500.0,0.00028691,7]
[328212359,1717062632918,-500.0,0.00028691,2]
[328212360,1717062632927,-313.45955208,0.00028691,7]
[328212361,1717062632936,-500.0,0.00028691,7]
[328212362,1717062632946,-500.0,0.00028691,7]
[328212363,1717062632955,-500.0,0.00028691,7]
[328212364,1717062632965,-236.17844065,0.00028691,7]
[328212365,1717062632975,-500.0,0.00028691,7]
[328212366,1717062632984,-1374.64,0.00028691,5]
[328212367,1717062632994,-500.0,0.00028691,7]
[328212368,1717062633004,-500.0,0.00028691,7]
[328212369,1717062633013,-500.0,0.00028691,7]
[328212370,1717062633022,-500.0,0.00028691,7]
[328212371,1717062633031,-527.19973671,0.00028691,7]
[328212372,1717062633040,-500.0,0.00028691,7]
[328212373,1717062633049,-500.0,0.00028691,7]
[328212374,1717062633059,-500.0,0.00028691,2]
[328212375,1717062633068,-320.31637533,0.00028691,7]
[328212376,1717062633077,-509.85113076,0.00028691,7]
[328212377,1717062633087,-155.000001,0.00028724,2]
[328212378,1717062633096,-1500.0,0.00028725,2]
[328212379,1717062633106,-150.0,0.00028744,2]
[328212380,1717062633115,-150.0,0.00028794,2]
[328212381,1717062633124,-150.0,0.0002886,2]
[328212382,1717062633134,-150.0,0.0002891,2]
[328212383,1717062633143,-1289.38068971,0.00028931,2]
[328212384,1717062633152,-592.73190113,0.00028963,2]
[328212385,1717062633161,-487.0398276,0.00028963,2]
[328212386,1717062633171,-284.59637828,0.00028963,2]
[328212387,1717062633180,-208.8943473,0.00028963,2]
[328212388,1717062633189,-263.32579252,0.00028964,2]
[328212389,1717062633198,-500.0,0.00028965,7]
[328212390,1717062633207,-500.0,0.00028965,7]
[328212391,1717062633216,-500.0,0.00028965,7]
[328212392,1717062633225,-558.62,0.00028965,7]
[328212393,1717062633234,-500.0,0.00028965,7]
[328212394,1717062633245,-500.0,0.00028965,7]
[328212395,1717062633254,-500.0,0.00028965,7]
[328212396,1717062633263,-276.31930374,0.00028965,7]
[328212397,1717062633272,-500.0,0.00028965,7]
[328212398,1717062633281,-500.0,0.00028965,7]
[328212399,1717062633290,-500.0,0.00028965,2]
[328212400,1717062633299,-500.0,0.00028965,7]
[328212401,1717062633309,-639.08808262,0.00028965,7]
[328212402,1717062633318,-500.0,0.00028965,7]
[328212403,1717062633327,-500.0,0.00028965,7]
[328212404,1717062633336,-500.0,0.00028965,7]
[328212405,1717062633350,-500.0,0.00028965,7]
[328212406,1717062633358,-700.78,0.00028965,7]
[328212407,1717062633368,-500.0,0.00028965,7]
[328212408,1717062633377,-500.0,0.00028965,7]
[328212409,1717062633388,-372.10051753,0.00028965,7]
[328212410,1717062633397,-500.0,0.00028965,7]
[328212411,1717062633406,-500.0,0.00028965,7]
[328212412,1717062633416,-500.0,0.00028965,7]
[328212413,1717062633425,-500.0,0.00028965,2]
[328212414,1717062633435,-500.0,0.00028965,7]
[328212415,1717062633444,-500.0,0.00028965,7]
[328212416,1717062633453,-500.0,0.00028965,7]
[328212417,1717062633462,-500.0,0.00028965,7]
[328212418,1717062633471,-1374.64,0.00028965,5]
[328212419,1717062633480,-211.59395898,0.00028965,7]
[328212420,1717062633490,-500.0,0.00028965,7]
[328212421,1717062633499,-500.0,0.00028965,7]
[328212422,1717062633508,-500.0,0.00028965,7]
[328212423,1717062633517,-500.0,0.00028965,7]
[328212424,1717062633526,-604.70604285,0.00028965,7]
[328212425,1717062633535,-500.0,0.00028965,2]
[328212426,1717062633545,-1246.589,0.0002903,2]
[328212427,1717062633554,-1272.15118051,0.0002903,2]
[328212428,1717062633563,-163.87246878,0.0002903,2]
[328212429,1717062633572,-325.60783427,0.0002903,2]
[328212430,1717062633581,-163.87246876,0.00029031,2]
[328212431,1717062633591,-165.56902189,0.00029031,2]
[328212432,1717062633600,-697.54233692,0.00029031,2]
[328212433,1717062633609,-9624.65435758,0.00029031,2]
[328212434,1717062633619,-262.69387054,0.00029031,2]
[328212435,1717062633628,-163.87246876,0.00029031,2]
[328212436,1717062633638,-1651.36793565,0.00029031,2]
[328212437,1717062633647,-199.79942975,0.00029031,2]
[328212438,1717062633656,-159.06477096,0.00029038,2]
[328212439,1717062633665,-150.0,0.00029039,2]
[328212440,1717062633674,-150.0,0.00029099,2]
[328212441,1717062633683,-283.14737373,0.00029103,2]
[328212442,1717062633692,-376.28341195,0.0002912,2]
[328212443,1717062633702,-376.28341195,0.0002912,2]
[328212444,1717062633711,-376.28341195,0.0002912,2]
[328212445,1717062633720,-150.59,0.0002912,2]
[328212446,1717062633729,-150.59,0.0002912,2]
[328212447,1717062633738,-150.59,0.0002912,2]
[328212448,1717062633747,-150.59,0.0002912,2]
[328212449,1717062633756,-150.59,0.0002912,2]
[328212450,1717062633765,-150.59,0.0002912,2]
[328212451,1717062633774,-150.59,0.0002912,2]
[328212452,1717062633783,-150.59,0.0002912,2]
[328212453,1717062633793,-150.59,0.0002912,2]
[328212454,1717062633802,-150.59,0.0002912,2]
[328212455,1717062633811,-150.59,0.0002912,2]
[328212456,1717062633820,-150.59,0.0002912,2]
[328212457,1717062633830,-150.59,0.0002912,2]
[328212458,1717062633839,-150.59,0.0002912,2]
[328212459,1717062633848,-150.59,0.0002912,2]
[328212460,1717062633858,-150.59,0.0002912,2]
[328212461,1717062633867,-150.59,0.0002912,2]
[328212462,1717062633877,-150.59,0.0002912,2]
[328212463,1717062633886,-150.59,0.0002912,2]
[328212464,1717062633895,-150.59,0.0002912,2]
[328212465,1717062633905,-500.0,0.00029129,7]
[328212466,1717062633914,-500.0,0.00029129,7]
[328212467,1717062633923,-614.7,0.00029129,7]
[328212468,1717062633932,-516.91,0.00029129,7]
[328212469,1717062633942,-500.0,0.00029129,7]
[328212470,1717062633951,-500.0,0.00029129,7]
[328212471,1717062633960,-500.0,0.00029129,7]
[328212472,1717062633969,-500.0,0.00029129,2]
[328212473,1717062633979,-500.0,0.00029129,7]
[328212474,1717062633988,-500.0,0.00029129,7]
[328212475,1717062633997,-500.0,0.00029129,7]
[328212476,1717062634007,-500.0,0.00029129,7]
[328212477,1717062634016,-500.0,0.00029129,7]
[328212478,1717062634025,-500.0,0.00029129,7]
[328212479,1717062634034,-500.0,0.00029129,7]
[328212480,1717062634043,-663.89,0.00029129,7]
[328212481,1717062634052,-500.0,0.00029129,7]
[328212482,1717062634061,-500.0,0.00029129,7]
[328212483,1717062634071,-500.0,0.00029129,7]
[328212484,1717062634080,-529.8361429,0.00029129,7]
[328212485,1717062634089,-500.0,0.00029129,7]
[328212486,1717062634098,-500.0,0.00029129,7]
[328212487,1717062634108,-500.0,0.00029129,7]
[328212488,1717062634117,-500.0,0.00029129,7]
[328212489,1717062634127,-500.0,0.00029129,7]
[328212490,1717062634138,-500.0,0.00029129,7]
[328212491,1717062634149,-500.0,0.00029129,7]
[328212492,1717062634158,-500.0,0.00029129,7]